bitfinex-derivatives/quotes_BTCF0:USTF0_20260119
["timestamp","ask_amount","ask_price","bid_price","bid_amount"]
[1768847255558,0.00236385,93069.0,93056.0,0.0094593]
[1768847255749,0.00236385,93069.0,93057.0,0.0094593]
[1768847260260,0.00236385,93069.0,93058.0,0.010751]
[1768847260459,0.00236385,93069.0,93057.0,0.0094593]
[1768847262356,0.00236385,93069.0,93058.0,0.00976271]
[1768847262962,0.00236385,93069.0,93052.0,0.00976271]
[1768847263259,0.010751,93066.0,93052.0,0.00976271]
[1768847263465,0.01075,93068.0,93052.0,0.00976271]
[1768847263653,0.00236385,93069.0,93052.0,0.00976271]
[1768847263858,0.010751,93065.0,93052.0,0.00976271]
[1768847265262,0.00940981,93068.0,93048.0,0.00947909]
[1768847265853,0.00940981,93068.0,93049.0,0.00931786]
[1768847266564,0.010751,93065.0,93051.0,0.010752]
[1768847267863,0.010751,93065.0,93049.0,0.00931786]
[1768847268268,0.010751,93065.0,93050.0,0.010752]
[1768847269864,0.02015981,93068.0,93050.0,0.010752]
[1768847270064,0.01075,93066.0,93050.0,0.02006986]
[1768847271269,0.00236385,93069.0,93050.0,0.00931786]
[1768847271869,0.010751,93064.0,93050.0,0.00931786]
[1768847273469,0.010751,93065.0,93051.0,0.010752]
[1768847273773,0.01075,93068.0,93051.0,0.00982286]
[1768847275471,0.01075,93067.0,93051.0,0.00982286]
[1768847276372,0.010751,93066.0,93051.0,0.00982286]
[1768847277670,0.010751,93066.0,93053.0,0.00982286]
[1768847277872,0.01075,93068.0,93053.0,0.01980628]
[1768847279778,0.00236385,93069.0,93053.0,0.01980628]
[1768847279972,0.00236385,93069.0,93054.0,0.010752]
[1768847280173,0.00236385,93069.0,93053.0,0.03055828]
[1768847280481,0.01311385,93069.0,93053.0,0.03055828]
[1768847280675,0.01311385,93069.0,93054.0,0.00982286]
[1768847280882,0.00236385,93069.0,93054.0,0.00982286]
[1768847281880,0.00236385,93069.0,93053.0,0.01980628]
[1768847282074,0.00236385,93069.0,93054.0,0.00982286]
[1768847282670,0.00236385,93069.0,93055.0,0.00982286]
[1768847287387,0.010751,93066.0,93055.0,0.00982286]
[1768847290175,0.0188725,93068.0,93048.0,0.00016123]
[1768847290382,0.19108821,93060.0,93048.0,0.00016123]
[1768847290883,0.010752,93050.0,93034.0,0.00998342]
[1768847291081,0.09676,93049.0,93031.0,0.010754]
[1768847291384,0.09676,93049.0,93033.0,0.010754]
[1768847291884,0.09676,93049.0,93033.0,0.02057686]
[1768847292084,0.09676,93049.0,93034.0,0.00982286]
[1768847293283,0.107513,93049.0,93034.0,0.00982286]
[1768847296389,0.09676,93049.0,93034.0,0.00982286]
[1768847300187,0.09676,93049.0,93033.0,0.00998342]
[1768847301182,0.09676,93049.0,93030.0,0.19016007]
[1768847301584,0.09676,93049.0,93031.0,0.010754]
[1768847302892,0.09676,93049.0,93031.0,0.01989382]
[1768847303393,0.09676,93049.0,93033.0,0.010754]
[1768847303584,0.09676,93049.0,93033.0,0.01989382]
[1768847304184,0.09676,93049.0,93035.0,0.010754]
[1768847304892,0.18033721,93050.0,93035.0,0.010754]
[1768847305093,0.09676,93049.0,93035.0,0.010754]
[1768847305294,0.18033721,93050.0,93033.0,0.00913982]
[1768847305707,0.09676,93049.0,93033.0,0.00913982]
[1768847306498,0.09676,93049.0,93033.0,0.01989382]
[1768847307299,0.18033721,93050.0,93033.0,0.01989382]
[1768847307508,0.09676,93049.0,93033.0,0.01989382]
[1768847308005,0.18033721,93050.0,93033.0,0.01989382]
[1768847308199,0.09676,93049.0,93033.0,0.01989382]
[1768847308400,0.18033721,93050.0,93034.0,0.00913982]
[1768847308605,0.09676,93049.0,93035.0,0.01989382]
[1768847309406,0.09676,93049.0,93035.0,0.010754]
[1768847310309,0.09676,93049.0,93032.0,0.01824144]
[1768847311410,0.00932339,93045.0,93029.0,0.00236487]
[1768847311607,0.00932339,93043.0,93029.0,0.00236487]
[1768847311803,0.00932339,93041.0,93029.0,0.00236487]
[1768847312202,0.00940941,93042.0,93030.0,0.010755]
[1768847312402,0.00932339,93044.0,93030.0,0.010755]
[1768847313713,0.00932339,93044.0,93029.0,0.00236487]
[1768847315414,0.00932339,93044.0,93029.0,0.01311987]
[1768847317915,0.00932339,93044.0,93030.0,0.010755]
[1768847319112,0.00016123,93045.0,93029.0,0.00236487]
[1768847319418,0.00016123,93045.0,93031.0,0.010754]
[1768847321421,0.00920653,93045.0,93029.0,0.01311987]
[1768847321809,0.00920653,93045.0,93030.0,0.077297]
[1768847322012,0.00920653,93045.0,93030.0,0.088052]
[1768847323122,0.00920653,93045.0,93030.0,0.077297]
[1768847328425,0.00920653,93045.0,93031.0,0.010755]
[1768847328726,0.00920653,93045.0,93030.0,0.077297]
[1768847328922,0.00920653,93045.0,93030.0,0.088052]
[1768847329822,0.00016123,93045.0,93030.0,0.088052]
[1768847330927,0.00016123,93045.0,92979.0,0.00423222]
[1768847330928,0.00131005,93009.0,92979.0,0.00423222]
[1768847331124,0.0062866,93000.0,92983.0,0.01076]
[1768847331320,0.0170446,93000.0,92979.0,0.00968044]
[1768847331521,0.0170446,93000.0,92982.0,0.38023568]
[1768847331522,0.010758,92998.0,92982.0,0.38023568]
[1768847331718,0.0062866,93000.0,92982.0,0.38023568]
[1768847331925,0.010758,92999.0,92984.0,0.00968044]
[1768847332230,0.010759,92997.0,92984.0,0.00968044]
[1768847332430,0.010759,92997.0,92985.0,0.09676]
[1768847332732,0.010758,92997.0,92986.0,0.38023568]
[1768847332934,0.010758,92997.0,92985.0,0.09676]
[1768847332935,0.010758,92997.0,92987.0,0.38023568]
[1768847333122,0.00013477,92998.0,92986.0,0.38023568]
[1768847333931,0.01089277,92998.0,92987.0,0.38023568]
[1768847334126,0.01089277,92998.0,92986.0,0.38023568]
[1768847334430,0.01089277,92998.0,92987.0,0.0967]
[1768847334930,0.010759,92996.0,92987.0,0.0967]
[1768847335325,0.00013477,92998.0,92987.0,0.0967]
[1768847337031,0.00013477,92998.0,92988.0,0.0968]
[1768847337237,0.00013477,92998.0,92989.0,0.0968]
[1768847337427,0.01089277,92998.0,92981.0,0.38989679]
[1768847337636,0.010757,93012.0,92982.0,0.10651111]
[1768847337936,0.010758,92999.0,92984.0,0.00016123]
[1768847338129,0.2402416,93020.0,92984.0,0.00016123]
[1768847338331,0.010758,92998.0,92984.0,0.00987234]
[1768847338834,0.010758,93001.0,92986.0,0.00971111]
[1768847339039,0.010757,93010.0,92996.0,0.00971111]
[1768847339332,0.010757,93010.0,92995.0,0.10651111]
[1768847339534,0.00236549,93004.0,92995.0,0.10651111]
[1768847339723,0.010757,93010.0,92995.0,0.46669999]
[1768847340037,0.010757,93010.0,92995.0,0.10651111]
[1768847341036,0.010757,93008.0,92995.0,0.10651111]
[1768847345438,0.010757,93008.0,92995.0,0.46669999]
[1768847345838,0.010757,93008.0,92995.0,0.10651111]
[1768847346032,0.010757,93008.0,92995.0,0.46669999]
[1768847346443,0.010758,93005.0,92995.0,0.46669999]
[1768847346748,0.010756,93015.0,92997.0,0.36018888]
[1768847346943,0.010756,93015.0,92995.0,0.10651111]
[1768847347537,0.010758,93005.0,92995.0,0.10651111]
[1768847347739,0.010756,93015.0,92996.0,0.00971111]
[1768847347936,0.010757,93009.0,92997.0,0.00971111]
[1768847348140,0.010756,93020.0,92998.0,0.00971111]
[1768847348339,0.010757,93014.0,93002.0,0.00971111]
[1768847348641,0.00011852,93011.0,92995.0,0.0968]
[1768847349135,0.00011852,93011.0,92995.0,0.107559]
[1768847349335,0.010757,93010.0,92997.0,0.02046911]
[1768847349641,0.00011852,93020.0,92997.0,0.00971111]
[1768847350043,0.010757,93009.0,92997.0,0.00971111]
[1768847351342,0.00014671,93018.0,92997.0,0.00971111]
[1768847352845,0.010757,93014.0,92997.0,0.00971111]
[1768847353139,0.010756,93017.0,92997.0,0.00971111]
[1768847353544,0.010756,93015.0,92997.0,0.00971111]
[1768847354748,0.01090271,93018.0,92997.0,0.02046911]
[1768847355737,0.01090271,93018.0,93000.0,0.010758]
[1768847356748,0.00236498,93024.0,93006.0,0.00971111]
[1768847356949,0.00236498,93024.0,93011.0,0.010757]
[1768847357944,0.00236498,93024.0,93009.0,0.00236538]
[1768847358348,0.02733895,93023.0,93009.0,0.00236538]
[1768847358653,0.00236498,93024.0,93009.0,0.00236538]
[1768847358846,0.02734091,93023.0,93012.0,0.010757]
[1768847359051,0.00236498,93024.0,93011.0,0.00971111]
[1768847359349,0.02734112,93023.0,93011.0,0.00971111]
[1768847359552,0.00236498,93024.0,93011.0,0.00971111]
[1768847359553,0.02734112,93022.0,93011.0,0.00971111]
[1768847359744,0.02734112,93021.0,93011.0,0.00971111]
[1768847359940,0.00236498,93024.0,93011.0,0.00971111]
[1768847360142,0.30778812,93096.0,93020.0,0.00971111]
[1768847360143,0.09684,93041.0,93020.0,0.00971111]
[1768847360445,0.010754,93035.0,93020.0,0.00971111]
[1768847360644,0.15683476,93041.0,93020.0,0.00971111]
[1768847361049,0.010755,93032.0,93020.0,0.00971111]
[1768847364254,0.010754,93035.0,93020.0,0.02046711]
[1768847364547,0.00010898,93040.0,93022.0,0.010756]
[1768847365453,0.010754,93036.0,93022.0,0.010756]
[1768847366245,0.00010898,93040.0,93020.0,0.02046711]
[1768847366446,0.010755,93032.0,93020.0,0.00971111]
[1768847367353,0.010754,93035.0,93020.0,0.00971111]
[1768847369057,0.010754,93032.0,93020.0,0.00971111]
[1768847369559,0.010754,93032.0,93021.0,0.36018888]
[1768847370857,0.010754,93032.0,93022.0,0.36018888]
[1768847371058,0.010754,93032.0,93021.0,0.36018888]
[1768847371558,0.010754,93032.0,93022.0,0.36018888]
[1768847371759,0.010754,93032.0,93021.0,0.36018888]
[1768847372158,0.010754,93032.0,93020.0,0.00971111]
[1768847372159,0.010754,93032.0,93022.0,0.36018888]
[1768847372658,0.010754,93032.0,93023.0,0.36018888]
[1768847372856,0.010754,93032.0,93022.0,0.36018888]
[1768847373255,0.010754,93032.0,93023.0,0.36018888]
[1768847373454,0.010754,93032.0,93022.0,0.36018888]
[1768847373855,0.010754,93032.0,93023.0,0.36018888]
[1768847374152,0.010754,93032.0,93022.0,0.36018888]
[1768847374558,0.010754,93032.0,93023.0,0.36018888]
[1768847374859,0.010754,93032.0,93022.0,0.36018888]
[1768847375049,0.09684,93041.0,93028.0,0.36018888]
[1768847375254,0.02683639,93040.0,93026.0,0.00923289]
[1768847375449,0.010754,93037.0,93027.0,0.00923289]
[1768847375654,0.03759039,93036.0,93027.0,0.00923289]
[1768847375856,0.02683639,93035.0,93030.0,0.36018888]
[1768847376256,0.02683639,93035.0,93032.0,0.36018888]
[1768847376448,0.02683639,93035.0,93030.0,0.36018888]
[1768847376651,0.03759039,93035.0,93027.0,0.00923289]
[1768847376849,0.02683639,93034.0,93027.0,0.00923289]
[1768847377861,0.010754,93035.0,93027.0,0.00923289]
[1768847379461,0.03759439,93035.0,93027.0,0.00923289]
[1768847379764,0.02684039,93034.0,93027.0,0.00923289]
[1768847380160,0.010754,93035.0,93027.0,0.00923289]
[1768847380361,0.02683413,93034.0,93027.0,0.00923289]
[1768847380659,0.09684,93041.0,93027.0,0.00923289]
[1768847380859,0.02683387,93040.0,93027.0,0.00923289]
[1768847381163,0.02683387,93039.0,93027.0,0.00923289]
[1768847381364,0.010754,93035.0,93027.0,0.00923289]
[1768847381563,0.02683387,93034.0,93027.0,0.00923289]
[1768847382761,0.010754,93033.0,93027.0,0.00923289]
[1768847382967,0.010754,93035.0,93027.0,0.00923289]
[1768847383163,0.010754,93033.0,93027.0,0.00923289]
[1768847384365,0.010754,93040.0,93027.0,0.00923289]
[1768847384568,0.02685148,93039.0,93027.0,0.00923289]
[1768847384767,0.02685148,93038.0,93027.0,0.00923289]
[1768847384970,0.02685148,93037.0,93027.0,0.00923289]
[1768847385271,0.02685148,93036.0,93027.0,0.00923289]
[1768847385473,0.010755,93031.0,93027.0,0.00923289]
[1768847385968,0.010755,93031.0,93022.0,0.01948134]
[1768847386162,0.010755,93029.0,93022.0,0.00958501]
[1768847387368,0.010755,93030.0,93022.0,0.00958501]
[1768847387762,0.010756,93022.0,93013.0,0.00931403]
[1768847387970,0.00984783,93032.0,93009.0,0.09916538]
[1768847388171,0.010754,93038.0,93009.0,0.09916538]
[1768847388172,0.010756,93019.0,93009.0,0.00236538]
[1768847388470,0.010756,93019.0,93010.0,0.0968]
[1768847388665,0.010756,93019.0,93008.0,0.00931403]
[1768847388866,0.010756,93022.0,93009.0,0.00931403]
[1768847389770,0.00984783,93031.0,93010.0,0.11569904]
[1768847389972,0.02647801,93030.0,93010.0,0.11569904]
[1768847390172,0.02647801,93029.0,93010.0,0.11569904]
[1768847390471,0.02647801,93028.0,93011.0,0.01889904]
[1768847390670,0.02647801,93027.0,93011.0,0.01889904]
[1768847390872,0.18050096,93030.0,93011.0,0.01889904]
[1768847391066,0.02648242,93029.0,93011.0,0.01889904]
[1768847391267,0.02648242,93028.0,93011.0,0.01889904]
[1768847391468,0.02648242,93027.0,93011.0,0.01889904]
[1768847391668,0.18050096,93030.0,93011.0,0.01889904]
[1768847391870,0.02648223,93029.0,93011.0,0.01889904]
[1768847392070,0.02648223,93028.0,93011.0,0.01889904]
[1768847392269,0.02648223,93027.0,93011.0,0.01889904]
[1768847392472,0.010755,93025.0,93011.0,0.01889904]
[1768847392874,0.010755,93028.0,93011.0,0.01889904]
[1768847393173,0.02648211,93027.0,93011.0,0.01889904]
[1768847393368,0.010755,93028.0,93011.0,0.01889904]
[1768847393668,0.02648184,93027.0,93011.0,0.01889904]
[1768847393867,0.010755,93028.0,93012.0,0.010757]
[1768847394063,0.02648184,93027.0,93011.0,0.01889904]
[1768847394372,0.18050096,93030.0,93014.0,0.01929544]
[1768847394563,0.02648172,93029.0,93014.0,0.01929544]
[1768847394759,0.18050096,93030.0,93014.0,0.01929544]
[1768847394959,0.02648137,93029.0,93014.0,0.01929544]
[1768847395164,0.02648137,93028.0,93014.0,0.01929544]
[1768847395474,0.18050096,93030.0,93014.0,0.03005144]
[1768847395776,0.02648146,93029.0,93014.0,0.03005144]
[1768847395974,0.02648146,93028.0,93014.0,0.03005144]
[1768847396174,0.18050096,93030.0,93014.0,0.03005144]
[1768847396376,0.02648144,93029.0,93014.0,0.03005144]
[1768847396569,0.02648144,93028.0,93014.0,0.03005144]
[1768847396770,0.18050096,93030.0,93014.0,0.03005144]
[1768847398567,0.00236487,93029.0,93014.0,0.03005144]
[1768847398973,0.00236487,93029.0,93016.0,0.010756]
[1768847399373,0.02648092,93028.0,93016.0,0.010756]
[1768847399571,0.00236487,93029.0,93016.0,0.010756]
[1768847399776,0.02648091,93028.0,93016.0,0.010756]
[1768847400079,0.00236487,93029.0,93016.0,0.010756]
[1768847400377,0.0264809,93028.0,93018.0,0.010756]
[1768847400567,0.00236487,93029.0,93018.0,0.010756]
[1768847401574,0.00236487,93029.0,93018.0,0.01929544]
[1768847401771,0.00236487,93029.0,93016.0,0.010756]
[1768847402673,0.010755,93028.0,93014.0,0.0968]
[1768847402879,0.00236487,93029.0,93017.0,0.010756]
[1768847403674,0.00236487,93029.0,93019.0,0.010756]
[1768847404276,0.00236487,93029.0,93016.0,0.010756]
[1768847405477,0.010755,93028.0,93014.0,0.11609544]
[1768847405872,0.010755,93028.0,93015.0,0.01929544]
[1768847406079,0.010755,93028.0,93016.0,0.01929544]
[1768847406481,0.010755,93028.0,93016.0,0.03005144]
[1768847406876,0.00236487,93029.0,93016.0,0.03005144]
[1768847408183,0.010755,93028.0,93016.0,0.03005144]
[1768847408585,0.01311987,93029.0,93016.0,0.01929544]
[1768847408778,0.00236487,93029.0,93017.0,0.03005144]
[1768847409386,0.00236487,93029.0,93017.0,0.01929544]
[1768847409585,0.010755,93028.0,93017.0,0.01929544]
[1768847409988,0.010755,93026.0,93017.0,0.01929544]
[1768847410287,0.00236487,93029.0,93017.0,0.01929544]
[1768847410488,0.010755,93026.0,93017.0,0.01929544]
[1768847410988,0.010755,93028.0,93017.0,0.01929544]
[1768847411287,0.010755,93026.0,93017.0,0.01929544]
[1768847411479,0.00236487,93029.0,93017.0,0.01929544]
[1768847411683,0.02649875,93028.0,93017.0,0.01929544]
[1768847411891,0.00236487,93029.0,93017.0,0.01929544]
[1768847412080,0.02649883,93028.0,93017.0,0.01929544]
[1768847412280,0.00236487,93029.0,93017.0,0.01929544]
[1768847412483,0.03725466,93028.0,93017.0,0.01929544]
[1768847412784,0.010755,93026.0,93017.0,0.01929544]
[1768847413789,0.010755,93026.0,93017.0,0.00962135]
[1768847413990,0.010755,93026.0,93013.0,0.0968]
[1768847414382,0.00236487,93029.0,93013.0,0.11609544]
[1768847414689,0.010755,93026.0,93014.0,0.01929544]
[1768847414885,0.00236487,93029.0,93014.0,0.01929544]
[1768847415092,0.18050096,93024.0,93010.0,0.0968]
[1768847415278,0.00040893,93027.0,93010.0,0.0968]
[1768847416382,0.010755,93025.0,93011.0,0.010757]
[1768847416782,0.00040893,93027.0,93011.0,0.010757]
[1768847416984,0.02631261,93026.0,93011.0,0.010757]
[1768847417289,0.00040893,93027.0,93011.0,0.010757]
[1768847417491,0.0263132,93026.0,93012.0,0.010757]
[1768847417691,0.00040893,93027.0,93012.0,0.010757]
[1768847418492,0.010755,93026.0,93012.0,0.010757]
[1768847418694,0.010755,93024.0,93012.0,0.010757]
[1768847419092,0.010755,93024.0,93010.0,0.107557]
[1768847420292,0.00236487,93029.0,93012.0,0.010757]
[1768847420484,0.00236487,93029.0,93010.0,0.10647409]
[1768847420485,0.02631211,93028.0,93017.0,0.01929544]
[1768847420684,0.02631211,93027.0,93017.0,0.01929544]
[1768847420886,0.01311987,93029.0,93017.0,0.03005144]
[1768847421194,0.010755,93027.0,93017.0,0.01929544]
[1768847421379,0.00236487,93029.0,93017.0,0.01929544]
[1768847421586,0.02631211,93028.0,93017.0,0.01929544]
[1768847421791,0.02631211,93027.0,93017.0,0.01929544]
[1768847422085,0.00236487,93029.0,93017.0,0.01929544]
[1768847422384,0.03706713,93028.0,93017.0,0.01929544]
[1768847422586,0.02631213,93027.0,93017.0,0.01929544]
[1768847422788,0.00236487,93029.0,93021.0,0.00904689]
[1768847423091,0.18050096,93030.0,93021.0,0.01898454]
[1768847423487,0.18050096,93030.0,93019.0,0.010756]
[1768847423793,0.19125596,93030.0,93019.0,0.010756]
[1768847425492,0.010755,93029.0,93017.0,0.00993765]
[1768847431087,0.18050096,93030.0,93016.0,0.00904689]
[1768847431393,0.010755,93026.0,93013.0,0.02069365]
[1768847431691,0.010755,93028.0,93013.0,0.00993765]
[1768847431885,0.18050096,93030.0,93013.0,0.00993765]
[1768847432484,0.010755,93026.0,93014.0,0.010756]
[1768847435096,0.010755,93025.0,93012.0,0.010757]
[1768847435492,0.010755,93024.0,93012.0,0.0968]
[1768847435796,0.010755,93024.0,93012.0,0.107557]
[1768847436099,0.010755,93024.0,93012.0,0.11749465]
[1768847436399,0.010755,93026.0,93015.0,0.010756]
[1768847436698,0.18050096,93030.0,93015.0,0.010756]
[1768847436699,0.010755,93028.0,93015.0,0.010756]
[1768847436894,0.010755,93026.0,93015.0,0.010756]
[1768847437894,0.010755,93028.0,93015.0,0.010756]
[1768847438099,0.02619372,93027.0,93016.0,0.010756]
[1768847438301,0.19125596,93030.0,93016.0,0.010756]
[1768847438487,0.02619396,93029.0,93016.0,0.010756]
[1768847438688,0.02619396,93028.0,93018.0,0.010756]
[1768847438893,0.02619396,93027.0,93013.0,0.00993765]
[1768847439101,0.18050096,93030.0,93013.0,0.00993765]
[1768847439402,0.02619506,93029.0,93013.0,0.00993765]
[1768847439590,0.02619506,93028.0,93013.0,0.00993765]
[1768847439790,0.02619506,93027.0,93013.0,0.00993765]
[1768847440002,0.18050096,93030.0,93013.0,0.00993765]
[1768847440194,0.02619525,93029.0,93013.0,0.00993765]
[1768847440395,0.03695025,93028.0,93015.0,0.010756]
[1768847440598,0.02619525,93027.0,93015.0,0.010756]
[1768847441295,0.02619525,93027.0,93016.0,0.010756]
[1768847441500,0.18050096,93030.0,93016.0,0.010756]
[1768847441698,0.02619523,93029.0,93016.0,0.010756]
[1768847441898,0.02619523,93028.0,93016.0,0.010756]
[1768847442096,0.02619523,93027.0,93016.0,0.010756]
[1768847442298,0.18050096,93030.0,93016.0,0.010756]
[1768847442501,0.02619531,93029.0,93016.0,0.010756]
[1768847442802,0.03695031,93028.0,93016.0,0.010756]
[1768847442999,0.02619531,93027.0,93016.0,0.010756]
[1768847443199,0.010755,93028.0,93016.0,0.010756]
[1768847443401,0.02619525,93027.0,93016.0,0.010756]
[1768847443600,0.010755,93028.0,93013.0,0.02069465]
[1768847443801,0.02619525,93027.0,93013.0,0.02069465]
[1768847444104,0.18050096,93030.0,93013.0,0.02069465]
[1768847444314,0.010755,93027.0,93014.0,0.010756]
[1768847447504,0.010755,93025.0,93012.0,0.01980389]
[1768847448906,0.010755,93024.0,93011.0,0.107557]
[1768847449407,0.18050096,93030.0,93011.0,0.10668217]
[1768847449608,0.02607779,93029.0,93011.0,0.10668217]
[1768847449906,0.010755,93027.0,93015.0,0.010756]
[1768847450107,0.010755,93029.0,93015.0,0.010756]
[1768847450307,0.02607784,93028.0,93015.0,0.010756]
[1768847450505,0.02607784,93027.0,93015.0,0.010756]
[1768847450708,0.010755,93029.0,93015.0,0.010756]
[1768847450908,0.02607804,93028.0,93015.0,0.010756]
[1768847451107,0.02607804,93027.0,93015.0,0.010756]
[1768847451309,0.010755,93029.0,93015.0,0.010756]
[1768847451499,0.02607816,93028.0,93015.0,0.010756]
[1768847451702,0.02607816,93027.0,93016.0,0.010756]
[1768847452012,0.010755,93029.0,93016.0,0.010756]
[1768847452211,0.02607814,93028.0,93016.0,0.010756]
[1768847452410,0.02607814,93027.0,93016.0,0.010756]
[1768847452710,0.010755,93029.0,93017.0,0.010756]
[1768847453006,0.02607829,93028.0,93018.0,0.010756]
[1768847453310,0.02607829,93027.0,93018.0,0.010756]
[1768847453511,0.010755,93029.0,93018.0,0.010756]
[1768847453811,0.02607846,93028.0,93018.0,0.010756]
[1768847454011,0.02607846,93027.0,93018.0,0.010756]
[1768847454211,0.010755,93029.0,93017.0,0.010756]
[1768847454407,0.02607845,93028.0,93017.0,0.010756]
[1768847454607,0.03683345,93027.0,93014.0,0.010756]
[1768847454915,0.010755,93029.0,93016.0,0.010756]
[1768847455106,0.02607864,93028.0,93016.0,0.010756]
[1768847455307,0.02607864,93027.0,93016.0,0.010756]
[1768847455612,0.010755,93029.0,93016.0,0.010756]
[1768847455806,0.03683378,93028.0,93016.0,0.010756]
[1768847456104,0.010755,93028.0,93016.0,0.010756]
[1768847459912,0.09696123,93035.0,93015.0,0.0097759]
[1768847460115,0.00016123,93035.0,93024.0,0.01931488]
[1768847460316,0.00016123,93035.0,93026.0,0.0097759]
[1768847460513,0.00016123,93035.0,93026.0,0.0205309]
[1768847461715,0.00016123,93035.0,93028.0,0.010755]
[1768847462212,0.00016123,93035.0,93025.0,0.010755]
[1768847462418,0.00016123,93035.0,93019.0,0.03007088]
[1768847462617,0.00932934,93031.0,93012.0,0.0968]
[1768847462815,0.00932934,93030.0,93012.0,0.0968]
[1768847463027,0.00932934,93029.0,93012.0,0.0968]
[1768847463318,0.010755,93027.0,93012.0,0.0968]
[1768847464020,0.010755,93025.0,93012.0,0.0968]
[1768847464317,0.010755,93028.0,93013.0,0.02029598]
[1768847464518,0.010755,93028.0,93013.0,0.010757]
[1768847465615,0.010755,93028.0,93012.0,0.0968]
[1768847465616,0.010755,93028.0,93010.0,0.010757]
[1768847465811,0.010755,93028.0,93009.0,0.01214128]
[1768847466519,0.010755,93028.0,93010.0,0.0097759]
[1768847466723,0.010755,93028.0,93012.0,0.010757]
[1768847469126,0.010755,93026.0,93012.0,0.010757]
[1768847471724,0.010755,93026.0,93012.0,0.0205329]
[1768847472821,0.01931952,93031.0,93012.0,0.0205329]
[1768847473022,0.010755,93025.0,93012.0,0.0205329]
[1768847476525,0.01931952,93031.0,93012.0,0.0097759]
[1768847476721,0.010757,93011.0,93009.0,3.8e-07]
[1768847477024,0.00932934,93013.0,92996.0,0.010758]
[1768847477025,0.010757,93009.0,92996.0,0.010758]
[1768847477212,0.00999018,93013.0,92992.0,0.00953898]
[1768847477417,0.00932934,93011.0,92993.0,0.0968]
[1768847477611,0.00999018,93013.0,92993.0,0.0097759]
[1768847477816,0.010758,93004.0,92994.0,0.0097759]
[1768847478017,0.00999018,93013.0,92994.0,0.0097759]
[1768847478018,0.010758,93005.0,92994.0,0.0097759]
[1768847480317,0.010758,93005.0,92994.0,0.0205349]
[1768847480516,0.010757,93008.0,92994.0,0.0205349]
[1768847481221,0.00016123,93011.0,92994.0,0.0205349]
[1768847482531,0.010757,93006.0,92994.0,0.0205349]
[1768847482923,0.00016123,93011.0,92994.0,0.0097759]
[1768847483436,0.010758,93000.0,92991.0,0.0968]
[1768847483732,0.010758,93003.0,92991.0,0.0968]
[1768847484540,0.00924995,93008.0,92991.0,0.0968]
[1768847484541,0.010758,93001.0,92991.0,0.0968]
[1768847489240,0.010758,93000.0,92991.0,0.0968]
[1768847489434,0.010758,93000.0,92992.0,0.00943016]
[1768847489741,0.00941118,93011.0,92991.0,0.10591753]
[1768847490037,0.010758,93000.0,92991.0,0.10591753]
[1768847492743,0.010758,93000.0,92991.0,0.00911753]
[1768847494138,0.010758,93000.0,92991.0,0.01854769]
[1768847495635,0.010758,92998.0,92991.0,0.01854769]
[1768847496439,0.010759,92997.0,92991.0,0.01854769]
[1768847497246,0.010758,92999.0,92991.0,0.01854769]
[1768847497940,0.010758,92998.0,92991.0,0.01854769]
[1768847498839,0.010759,92997.0,92991.0,0.01854769]
[1768847499437,0.010758,93001.0,92991.0,0.01854769]
[1768847499626,0.010758,93001.0,92992.0,0.00943016]
[1768847500437,0.010757,93009.0,92992.0,0.00943016]
[1768847501943,0.010758,93000.0,92992.0,0.00943016]
[1768847507257,0.00016123,93011.0,92993.0,0.00914441]
[1768847507462,0.010758,93002.0,92993.0,0.00914441]
[1768847511462,0.010758,93002.0,92992.0,0.00959569]
[1768847512664,0.010758,93004.0,92992.0,0.00959569]
[1768847512854,0.010758,93004.0,92992.0,0.02035469]
[1768847513859,0.010758,93004.0,92993.0,0.010759]
[1768847514059,0.010758,93003.0,92992.0,0.00959569]
[1768847514867,0.010758,93003.0,92992.0,0.02035469]
[1768847516169,0.010758,93003.0,92992.0,0.00959569]
[1768847517568,0.01007541,93011.0,92992.0,0.01873947]
[1768847517764,0.010758,93005.0,92994.0,0.010759]
[1768847518063,0.010758,93001.0,92989.0,0.01312488]
[1768847518271,0.18057085,93000.0,92989.0,0.00236588]
[1768847518467,0.00940013,92996.0,92989.0,0.00236588]
[1768847518671,0.010759,92995.0,92987.0,0.094474]
[1768847518965,0.00968191,92999.0,92987.0,0.094474]
[1768847518966,0.010758,92998.0,92987.0,0.094474]
[1768847519161,0.18997098,93000.0,92984.0,0.099206]
[1768847519362,0.18057085,93000.0,92984.0,0.099206]
[1768847520174,0.00940013,93002.0,92984.0,0.099206]
[1768847520367,0.010759,92993.0,92984.0,0.002366]
[1768847520672,0.010759,92993.0,92982.0,0.09684]
[1768847521565,0.010759,92996.0,92982.0,0.1076]
[1768847521764,0.010759,92996.0,92982.0,0.01076]
[1768847522066,0.010759,92996.0,92935.0,0.1076]
[1768847522067,0.010759,92990.0,92975.0,0.010761]
[1768847522267,0.01076,92988.0,92976.0,0.09684]
[1768847522461,0.01076,92988.0,92970.0,0.25798765]
[1768847522662,0.00940013,92989.0,92973.0,0.010761]
[1768847522868,0.01076,92988.0,92971.0,0.09684]
[1768847523169,0.00016131,92988.0,92976.0,0.010761]
[1768847523367,0.00016131,92988.0,92972.0,0.00914378]
[1768847523565,0.01092131,92988.0,92976.0,0.010761]
[1768847524165,0.00016131,92988.0,92976.0,0.010761]
[1768847524672,0.00016131,92988.0,92971.0,0.10600925]
[1768847524673,0.00016131,92988.0,92973.0,0.010761]
[1768847525165,0.00956144,92988.0,92973.0,0.010761]
[1768847525367,0.01092131,92988.0,92971.0,0.00916925]
[1768847525572,0.00016131,92988.0,92975.0,0.00914378]
[1768847525770,0.00016131,92988.0,92968.0,0.00914378]
[1768847525771,0.18057085,92985.0,92968.0,0.00914378]
[1768847525963,0.00956144,92988.0,92968.0,0.00914378]
[1768847526470,0.18057085,92980.0,92967.0,0.00916925]
[1768847526667,0.00940013,92986.0,92966.0,0.010762]
[1768847526972,0.00016131,92988.0,92966.0,0.010762]
[1768847526973,0.00940013,92984.0,92966.0,0.010762]
[1768847527159,0.00940013,92984.0,92964.0,0.09920651]
[1768847527367,0.010761,92977.0,92964.0,0.09920651]
[1768847527877,0.19133185,92980.0,92965.0,0.010762]
[1768847528066,0.010761,92978.0,92965.0,0.010762]
[1768847528374,0.010761,92975.0,92964.0,0.00236651]
[1768847529971,0.010761,92977.0,92964.0,0.00236651]
[1768847531075,0.010761,92977.0,92963.0,0.07484863]
[1768847531274,0.18057085,92980.0,92963.0,0.07484863]